[Event "Titled Tuesday Blitz June 20 Early 2023"]
[White "Oro, Faustino"]
[Black "Slavin, Alexey"]
[WhiteFideId "20000197"]
[BlackFideId "24104388"]
[WhiteElo "1984"]
[BlackElo "2264"]
[Result "0-1"]
[Round "2"]
[TimeControl "180+2"]
[Date "2023.06.20"]
[WhiteClock "0:00:02"]
[BlackClock "0:00:29"]
[Board "140"]

1. Nf3 {[%clk 0:03:00]}  Nc6 {[%clk 0:02:59]} 2. e4 {[%clk 0:02:58]}  d6 {[%clk 0:02:59]} 3. d4 {[%clk 0:02:57]}  Nf6 {[%clk 0:02:59]} 4. Nc3 {[%clk 0:02:57]}  Bg4 {[%clk 0:03:00]} 5. Be2 {[%clk 0:02:56]}  e5 {[%clk 0:03:00]} 6. d5 {[%clk 0:02:52]}  Ne7 {[%clk 0:03:00]} 7. h3 {[%clk 0:02:48]}  Bd7 {[%clk 0:03:00]} 8. O-O {[%clk 0:02:47]}  Ng6 {[%clk 0:03:00]} 9. Be3 {[%clk 0:02:46]}  Be7 {[%clk 0:03:00]} 10. Qd2 {[%clk 0:02:47]}  O-O {[%clk 0:03:01]} 11. Rad1 {[%clk 0:02:47]}  a6 {[%clk 0:03:01]} 12. Bd3 {[%clk 0:02:43]}  Nh5 {[%clk 0:03:00]} 13. Ne2 {[%clk 0:02:18]}  h6 {[%clk 0:02:57]} 14. g4 {[%clk 0:02:04]}  Nf6 {[%clk 0:02:43]} 15. Ng3 {[%clk 0:02:01]}  Nh7 {[%clk 0:02:43]} 16. Nf5 {[%clk 0:01:54]}  Bxf5 {[%clk 0:02:38]} 17. gxf5 {[%clk 0:01:50]}  Nf4 {[%clk 0:02:20]} 18. Bxf4 {[%clk 0:01:47]}  exf4 {[%clk 0:02:20]} 19. Qxf4 {[%clk 0:01:48]}  Ng5 {[%clk 0:02:20]} 20. Nxg5 {[%clk 0:01:42]}  Bxg5 {[%clk 0:02:19]} 21. Qg3 {[%clk 0:01:43]}  Bf6 {[%clk 0:02:18]} 22. c3 {[%clk 0:01:42]}  Kh8 {[%clk 0:02:16]} 23. f4 {[%clk 0:01:40]}  Re8 {[%clk 0:02:14]} 24. Rde1 {[%clk 0:01:41]}  Bh4 {[%clk 0:02:09]} 25. Qh2 {[%clk 0:01:20]}  Bxe1 {[%clk 0:02:08]} 26. Rxe1 {[%clk 0:01:21]}  c6 {[%clk 0:02:03]} 27. c4 {[%clk 0:01:09]}  Qb6+ {[%clk 0:01:57]} 28. Kh1 {[%clk 0:00:47]}  Qd4 {[%clk 0:01:57]} 29. Qe2 {[%clk 0:00:47]}  f6 {[%clk 0:01:54]} 30. Rg1 {[%clk 0:00:43]}  Re7 {[%clk 0:01:52]} 31. Qf3 {[%clk 0:00:19]}  Rae8 {[%clk 0:01:48]} 32. b3 {[%clk 0:00:17]}  cxd5 {[%clk 0:01:39]} 33. cxd5 {[%clk 0:00:18]}  b5 {[%clk 0:01:34]} 34. Bb1 {[%clk 0:00:14]}  Rc8 {[%clk 0:01:29]} 35. Qg4 {[%clk 0:00:12]}  Qf2 {[%clk 0:01:16]} 36. Qg3 {[%clk 0:00:07]}  Qxg3 {[%clk 0:01:14]} 37. Rxg3 {[%clk 0:00:08]}  Rc1+ {[%clk 0:01:14]} 38. Rg1 {[%clk 0:00:08]}  Rxg1+ {[%clk 0:01:14]} 39. Kxg1 {[%clk 0:00:09]}  Rc7 {[%clk 0:01:14]} 40. Kf2 {[%clk 0:00:09]}  Rc1 {[%clk 0:01:13]} 41. Bd3 {[%clk 0:00:09]}  Ra1 {[%clk 0:01:10]} 42. Ke3 {[%clk 0:00:09]}  Rxa2 {[%clk 0:01:10]} 43. e5 {[%clk 0:00:09]}  fxe5 {[%clk 0:01:09]} 44. fxe5 {[%clk 0:00:10]}  Kg8 {[%clk 0:01:05]} 45. exd6 {[%clk 0:00:06]}  Kf7 {[%clk 0:01:05]} 46. Kd4 {[%clk 0:00:06]}  Rd2 {[%clk 0:01:03]} 47. Kc3 {[%clk 0:00:05]}  Rd1 {[%clk 0:01:03]} 48. Be4 {[%clk 0:00:05]}  Ke8 {[%clk 0:01:01]} 49. Kb4 {[%clk 0:00:04]}  Kd7 {[%clk 0:01:01]} 50. Kc5 {[%clk 0:00:04]}  Rc1+ {[%clk 0:01:01]} 51. Kb6 {[%clk 0:00:05]}  Kxd6 {[%clk 0:01:01]} 52. Kxa6 {[%clk 0:00:05]}  Re1 {[%clk 0:00:59]} 53. Bf3 {[%clk 0:00:05]}  b4 {[%clk 0:00:58]} 54. Kb5 {[%clk 0:00:05]}  Re3 {[%clk 0:00:58]} 55. Bd1 {[%clk 0:00:03]}  Rxh3 {[%clk 0:00:51]} 56. Kxb4 {[%clk 0:00:03]}  Kxd5 {[%clk 0:00:51]} 57. Kb5 {[%clk 0:00:03]}  Rd3 {[%clk 0:00:46]} 58. Bc2 {[%clk 0:00:02]}  Rc3 {[%clk 0:00:46]} 59. Bd1 {[%clk 0:00:03]}  Rc8 {[%clk 0:00:44]} 60. b4 {[%clk 0:00:03]}  Rb8+ {[%clk 0:00:43]} 61. Ka5 {[%clk 0:00:04]}  Kc4 {[%clk 0:00:42]} 62. Be2+ {[%clk 0:00:04]}  Kd5 {[%clk 0:00:40]} 63. b5 {[%clk 0:00:05]}  Kc5 {[%clk 0:00:40]} 64. Ka6 {[%clk 0:00:04]}  Ra8+ {[%clk 0:00:38]} 65. Kb7 {[%clk 0:00:04]}  Ra2 {[%clk 0:00:38]} 66. Bd3 {[%clk 0:00:05]}  Rd2 {[%clk 0:00:37]} 67. Bf1 {[%clk 0:00:05]}  Rf2 {[%clk 0:00:36]} 68. Bd3 {[%clk 0:00:05]}  Rf3 {[%clk 0:00:36]} 69. Be4 {[%clk 0:00:04]}  Rf4 {[%clk 0:00:36]} 70. Bd3 {[%clk 0:00:05]}  Kd4 {[%clk 0:00:35]} 71. Be2 {[%clk 0:00:04]}  Rxf5 {[%clk 0:00:35]} 72. b6 {[%clk 0:00:05]}  g5 {[%clk 0:00:34]} 73. Ka7 {[%clk 0:00:05]}  Rf8 {[%clk 0:00:33]} 74. Bh5 {[%clk 0:00:05]}  Ke3 {[%clk 0:00:34]} 75. b7 {[%clk 0:00:05]}  Kf4 {[%clk 0:00:34]} 76. Be2 {[%clk 0:00:05]}  g4 {[%clk 0:00:33]} 77. Bb5 {[%clk 0:00:05]}  Rd8 {[%clk 0:00:32]} 78. Ka6 {[%clk 0:00:02]}  Rb8 {[%clk 0:00:32]} 79. Bd7 {[%clk 0:00:03]}  h5 {[%clk 0:00:31]} 80. Ka7 {[%clk 0:00:03]}  Rxb7+ {[%clk 0:00:31]} 81. Kxb7 {[%clk 0:00:04]}  h4 {[%clk 0:00:31]} 82. Kc6 {[%clk 0:00:05]}  h3 {[%clk 0:00:31]} 83. Kc5 {[%clk 0:00:03]}  h2 {[%clk 0:00:30]} 84. Bc6 {[%clk 0:00:03]}  Ke3 {[%clk 0:00:29]} 85. Kc4 {[%clk 0:00:04]}  Kf2 {[%clk 0:00:29]} 86. Kd3 {[%clk 0:00:02]}  g3 {[%clk 0:00:29]} 0-1


[Site "https://www.chess.com"]

[Event "Titled Tuesday Blitz June 20 Early 2023"]
[White "Nazari, Arad"]
[Black "Abduzhaparov"]
[WhiteFideId "12577324"]
[WhiteElo "2175"]
[BlackElo "2383"]
[Result "1-0"]
[Round "2"]
[TimeControl "180+2"]
[Date "2023.06.20"]
[WhiteClock "0:00:09"]
[BlackClock "0:00:08"]
[Board "142"]

1. e4 {[%clk 0:02:34]}  d6 {[%clk 0:03:00]} 2. d4 {[%clk 0:02:34]}  Nf6 {[%clk 0:03:01]} 3. Nc3 {[%clk 0:02:34]}  e5 {[%clk 0:03:02]} 4. dxe5 {[%clk 0:02:33]}  dxe5 {[%clk 0:03:03]} 5. Qxd8+ {[%clk 0:02:34]}  Kxd8 {[%clk 0:03:04]} 6. Bc4 {[%clk 0:02:35]}  Ke8 {[%clk 0:03:03]} 7. Nf3 {[%clk 0:02:32]}  Bd6 {[%clk 0:03:02]} 8. Bg5 {[%clk 0:02:33]}  Nbd7 {[%clk 0:02:57]} 9. O-O-O {[%clk 0:02:30]}  a6 {[%clk 0:02:56]} 10. Rhe1 {[%clk 0:02:31]}  h6 {[%clk 0:02:56]} 11. Bh4 {[%clk 0:02:29]}  g5 {[%clk 0:02:55]} 12. Bg3 {[%clk 0:02:30]}  Nh5 {[%clk 0:02:53]} 13. Nd2 {[%clk 0:02:27]}  Nf4 {[%clk 0:02:45]} 14. Bxf4 {[%clk 0:02:19]}  gxf4 {[%clk 0:02:46]} 15. g3 {[%clk 0:02:17]}  fxg3 {[%clk 0:02:38]} 16. hxg3 {[%clk 0:02:18]}  Nb6 {[%clk 0:02:35]} 17. Bb3 {[%clk 0:02:16]}  Bg4 {[%clk 0:02:28]} 18. f3 {[%clk 0:02:12]}  Be6 {[%clk 0:02:27]} 19. Bxe6 {[%clk 0:01:57]}  fxe6 {[%clk 0:02:28]} 20. Rh1 {[%clk 0:01:55]}  Ke7 {[%clk 0:02:26]} 21. Rh5 {[%clk 0:01:54]}  Rag8 {[%clk 0:02:25]} 22. g4 {[%clk 0:01:54]}  Rg6 {[%clk 0:02:10]} 23. Rdh1 {[%clk 0:01:54]}  Bc5 {[%clk 0:01:59]} 24. Nd1 {[%clk 0:01:52]}  Kf7 {[%clk 0:01:34]} 25. Rxe5 {[%clk 0:01:46]}  Bd6 {[%clk 0:01:30]} 26. Reh5 {[%clk 0:01:44]}  Bf4 {[%clk 0:01:29]} 27. Nc3 {[%clk 0:00:54]}  Nc4 {[%clk 0:01:23]} 28. Nb1 {[%clk 0:00:39]}  Rd8 {[%clk 0:01:21]} 29. Rd1 {[%clk 0:00:36]}  e5 {[%clk 0:01:21]} 30. Rf5+ {[%clk 0:00:31]}  Ke7 {[%clk 0:00:51]} 31. Rxf4 {[%clk 0:00:26]}  Nxb2 {[%clk 0:00:28]} 32. Rf5 {[%clk 0:00:18]}  Nxd1 {[%clk 0:00:27]} 33. Kxd1 {[%clk 0:00:19]}  Rb6 {[%clk 0:00:28]} 34. Rxe5+ {[%clk 0:00:18]}  Kf6 {[%clk 0:00:28]} 35. Rf5+ {[%clk 0:00:19]}  Kg6 {[%clk 0:00:28]} 36. Kc1 {[%clk 0:00:19]}  Rbd6 {[%clk 0:00:27]} 37. Nc4 {[%clk 0:00:15]}  Rd1+ {[%clk 0:00:26]} 38. Kb2 {[%clk 0:00:16]}  R8d4 {[%clk 0:00:24]} 39. Ne5+ {[%clk 0:00:15]}  Kg7 {[%clk 0:00:24]} 40. Nc3 {[%clk 0:00:14]}  Rb4+ {[%clk 0:00:19]} 41. Ka3 {[%clk 0:00:14]}  Rdd4 {[%clk 0:00:19]} 42. Nd5 {[%clk 0:00:12]}  Ra4+ {[%clk 0:00:17]} 43. Kb3 {[%clk 0:00:12]}  b5 {[%clk 0:00:15]} 44. Rf7+ {[%clk 0:00:11]}  Kh8 {[%clk 0:00:14]} 45. Nf6 {[%clk 0:00:08]}  Rab4+ {[%clk 0:00:13]} 46. Kc3 {[%clk 0:00:08]}  Rbc4+ {[%clk 0:00:10]} 47. Nxc4 {[%clk 0:00:08]}  Rxc4+ {[%clk 0:00:08]} 48. Kd3 {[%clk 0:00:09]} 1-0


[Site "https://www.chess.com"]

[Event "Titled Tuesday Blitz June 20 Early 2023"]
[White "Veiga, Jose Francisco R P Neves"]
[Black "Osinovsky, Stepan"]
[WhiteFideId "1930087"]
[BlackFideId "4157354"]
[WhiteElo "2319"]
[BlackElo "2222"]
[Result "1-0"]
[Round "2"]
[TimeControl "180+2"]
[Date "2023.06.20"]
[WhiteClock "0:00:08"]
[BlackClock "0:00:00"]
[Board "145"]

1. c4 {[%clk 0:03:00]}  Nf6 {[%clk 0:03:00]} 2. Nc3 {[%clk 0:03:00]}  g6 {[%clk 0:03:00]} 3. g3 {[%clk 0:02:59]}  Bg7 {[%clk 0:03:01]} 4. Bg2 {[%clk 0:03:00]}  O-O {[%clk 0:03:01]} 5. e4 {[%clk 0:03:00]}  e5 {[%clk 0:03:01]} 6. Nge2 {[%clk 0:03:00]}  d6 {[%clk 0:03:01]} 7. O-O {[%clk 0:03:01]}  Nbd7 {[%clk 0:03:00]} 8. d4 {[%clk 0:02:56]}  Re8 {[%clk 0:02:57]} 9. h3 {[%clk 0:02:55]}  a5 {[%clk 0:02:55]} 10. Be3 {[%clk 0:02:53]}  c6 {[%clk 0:02:53]} 11. Qc2 {[%clk 0:02:52]}  Qe7 {[%clk 0:02:44]} 12. Rad1 {[%clk 0:02:46]}  h5 {[%clk 0:02:44]} 13. a3 {[%clk 0:02:41]}  Nh7 {[%clk 0:02:42]} 14. b4 {[%clk 0:02:29]}  axb4 {[%clk 0:02:39]} 15. axb4 {[%clk 0:02:30]}  Ng5 {[%clk 0:02:30]} 16. f4 {[%clk 0:02:26]}  Ne6 {[%clk 0:02:25]} 17. d5 {[%clk 0:02:23]}  Nd4 {[%clk 0:01:50]} 18. Nxd4 {[%clk 0:02:22]}  exd4 {[%clk 0:01:51]} 19. Bxd4 {[%clk 0:02:22]}  Bxd4+ {[%clk 0:01:50]} 20. Rxd4 {[%clk 0:02:23]}  c5 {[%clk 0:01:50]} 21. bxc5 {[%clk 0:02:21]}  Nxc5 {[%clk 0:01:50]} 22. Kh2 {[%clk 0:02:13]}  h4 {[%clk 0:01:43]} 23. g4 {[%clk 0:02:11]}  Ra3 {[%clk 0:01:43]} 24. Rf3 {[%clk 0:01:34]}  Bd7 {[%clk 0:01:40]} 25. Nb5 {[%clk 0:01:17]}  Rxf3 {[%clk 0:01:36]} 26. Bxf3 {[%clk 0:01:18]}  Bxb5 {[%clk 0:01:20]} 27. cxb5 {[%clk 0:01:18]}  Ra8 {[%clk 0:01:19]} 28. g5 {[%clk 0:01:04]}  Ra3 {[%clk 0:01:03]} 29. Bg2 {[%clk 0:01:03]}  f5 {[%clk 0:00:44]} 30. gxf6 {[%clk 0:00:40]}  Qxf6 {[%clk 0:00:43]} 31. e5 {[%clk 0:00:40]}  Qg7 {[%clk 0:00:11]} 32. Rc4 {[%clk 0:00:35]}  b6 {[%clk 0:00:07]} 33. exd6 {[%clk 0:00:32]}  Qf6 {[%clk 0:00:06]} 34. f5 {[%clk 0:00:15]}  g5 {[%clk 0:00:05]} 35. Qd2 {[%clk 0:00:08]}  Qxd6+ {[%clk 0:00:04]} 36. Kg1 {[%clk 0:00:08]}  Ra1+ {[%clk 0:00:04]} 37. Rc1 {[%clk 0:00:09]}  Rxc1+ {[%clk 0:00:03]} 38. Qxc1 {[%clk 0:00:10]}  Qg3 {[%clk 0:00:00]} 39. d6 {[%clk 0:00:08]} 1-0


[Site "https://www.chess.com"]

[Event "Titled Tuesday Blitz June 20 Early 2023"]
[White "Gu, Xiaobing"]
[Black "Rahman, Masruri"]
[WhiteFideId "8602611"]
[BlackFideId "7101163"]
[WhiteElo "2174"]
[BlackElo "2256"]
[Result "0-1"]
[Round "2"]
[TimeControl "180+2"]
[Date "2023.06.20"]
[WhiteClock "0:00:00"]
[BlackClock "0:00:12"]
[Board "146"]

1. e4 {[%clk 0:03:00]}  e6 {[%clk 0:02:58]} 2. d4 {[%clk 0:02:59]}  d5 {[%clk 0:02:59]} 3. exd5 {[%clk 0:02:56]}  exd5 {[%clk 0:02:59]} 4. Nf3 {[%clk 0:02:57]}  Nc6 {[%clk 0:02:58]} 5. Bb5 {[%clk 0:02:56]}  Bd6 {[%clk 0:02:58]} 6. c4 {[%clk 0:02:50]}  a6 {[%clk 0:02:58]} 7. Bxc6+ {[%clk 0:02:39]}  bxc6 {[%clk 0:02:59]} 8. c5 {[%clk 0:02:38]}  Be7 {[%clk 0:02:57]} 9. Ne5 {[%clk 0:02:36]}  Bd7 {[%clk 0:02:45]} 10. Qa4 {[%clk 0:02:21]}  Qc8 {[%clk 0:02:41]} 11. O-O {[%clk 0:02:07]}  Nf6 {[%clk 0:02:30]} 12. Nxc6 {[%clk 0:02:04]}  Qb7 {[%clk 0:02:20]} 13. Na5 {[%clk 0:02:02]}  Bxa4 {[%clk 0:01:42]} 14. Nxb7 {[%clk 0:02:00]}  O-O {[%clk 0:01:33]} 15. Na5 {[%clk 0:01:56]}  Rfe8 {[%clk 0:01:27]} 16. Nc3 {[%clk 0:01:56]}  Bd7 {[%clk 0:01:20]} 17. c6 {[%clk 0:01:55]}  Be6 {[%clk 0:01:13]} 18. Bf4 {[%clk 0:01:55]}  Bb4 {[%clk 0:01:12]} 19. Nb7 {[%clk 0:01:37]}  Bxc3 {[%clk 0:01:02]} 20. bxc3 {[%clk 0:01:36]}  Ne4 {[%clk 0:01:03]} 21. Rfc1 {[%clk 0:01:27]}  g5 {[%clk 0:00:57]} 22. Be3 {[%clk 0:01:10]}  h6 {[%clk 0:00:57]} 23. f3 {[%clk 0:01:05]}  Nf6 {[%clk 0:00:52]} 24. Bf2 {[%clk 0:01:05]}  Kh7 {[%clk 0:00:45]} 25. Rab1 {[%clk 0:01:00]}  Ng8 {[%clk 0:00:44]} 26. Nc5 {[%clk 0:01:00]}  Ne7 {[%clk 0:00:40]} 27. Rb7 {[%clk 0:00:36]}  Rec8 {[%clk 0:00:38]} 28. Bg3 {[%clk 0:00:28]}  Nxc6 {[%clk 0:00:37]} 29. Bxc7 {[%clk 0:00:28]}  Kg6 {[%clk 0:00:35]} 30. Re1 {[%clk 0:00:22]}  Bf5 {[%clk 0:00:31]} 31. a4 {[%clk 0:00:16]}  Kh7 {[%clk 0:00:22]} 32. Kf2 {[%clk 0:00:16]}  Bg6 {[%clk 0:00:22]} 33. Bg3 {[%clk 0:00:15]}  Na5 {[%clk 0:00:21]} 34. Rbe7 {[%clk 0:00:14]}  Nc4 {[%clk 0:00:21]} 35. h4 {[%clk 0:00:14]}  Nb2 {[%clk 0:00:18]} 36. hxg5 {[%clk 0:00:13]}  h5 {[%clk 0:00:16]} 37. f4 {[%clk 0:00:12]}  Rxc5 {[%clk 0:00:14]} 38. dxc5 {[%clk 0:00:12]}  Nd3+ {[%clk 0:00:15]} 39. Kf1 {[%clk 0:00:12]}  Nxe1 {[%clk 0:00:12]} 40. Kxe1 {[%clk 0:00:11]}  Rc8 {[%clk 0:00:12]} 41. Bf2 {[%clk 0:00:11]}  Rb8 {[%clk 0:00:11]} 42. Ra7 {[%clk 0:00:11]}  Rb1+ {[%clk 0:00:11]} 43. Ke2 {[%clk 0:00:11]}  Rb2+ {[%clk 0:00:12]} 44. Ke3 {[%clk 0:00:10]}  Rc2 {[%clk 0:00:10]} 45. Rxa6 {[%clk 0:00:08]}  Rxc3+ {[%clk 0:00:10]} 46. Kd4 {[%clk 0:00:08]}  Rc2 {[%clk 0:00:10]} 47. Be3 {[%clk 0:00:07]}  Rxg2 {[%clk 0:00:10]} 48. c6 {[%clk 0:00:07]}  Rc2 {[%clk 0:00:11]} 49. a5 {[%clk 0:00:06]}  h4 {[%clk 0:00:11]} 50. Kxd5 {[%clk 0:00:03]}  h3 {[%clk 0:00:11]} 51. Bd4 {[%clk 0:00:02]}  h2 {[%clk 0:00:11]} 52. Ra8 {[%clk 0:00:02]}  h1=Q+ {[%clk 0:00:11]} 53. Kd6 {[%clk 0:00:02]}  Qxc6+ {[%clk 0:00:12]} 54. Ke7 {[%clk 0:00:00]}  Qxa8 {[%clk 0:00:12]} 0-1


[Site "https://www.chess.com"]

[Event "Titled Tuesday Blitz June 20 Early 2023"]
[White "Idani, Pouya"]
[Black "Ritvin, Stanislav"]
[WhiteFideId "12510130"]
[BlackFideId "2011751"]
[WhiteElo "2574"]
[BlackElo "2365"]
[Result "0-1"]
[Round "2"]
[TimeControl "180+2"]
[Date "2023.06.20"]
[WhiteClock "0:00:04"]
[BlackClock "0:00:31"]
[Board "150"]

1. e4 {[%clk 0:03:00]}  e5 {[%clk 0:02:59]} 2. Nf3 {[%clk 0:03:01]}  Nc6 {[%clk 0:02:59]} 3. Bb5 {[%clk 0:03:01]}  Nf6 {[%clk 0:02:58]} 4. d3 {[%clk 0:03:01]}  Bc5 {[%clk 0:02:58]} 5. Bxc6 {[%clk 0:03:02]}  dxc6 {[%clk 0:02:58]} 6. Nbd2 {[%clk 0:03:03]}  O-O {[%clk 0:02:57]} 7. Nc4 {[%clk 0:02:59]}  Nd7 {[%clk 0:02:53]} 8. Ne3 {[%clk 0:02:56]}  f6 {[%clk 0:02:52]} 9. h4 {[%clk 0:02:55]}  Re8 {[%clk 0:02:52]} 10. h5 {[%clk 0:02:55]}  Bf8 {[%clk 0:02:52]} 11. Nh4 {[%clk 0:02:55]}  Nc5 {[%clk 0:02:51]} 12. Nhf5 {[%clk 0:02:52]}  Be6 {[%clk 0:02:43]} 13. Qg4 {[%clk 0:02:48]}  Kh8 {[%clk 0:02:43]} 14. Qe2 {[%clk 0:02:39]}  Bf7 {[%clk 0:02:37]} 15. g3 {[%clk 0:02:35]}  Ne6 {[%clk 0:02:37]} 16. Bd2 {[%clk 0:02:29]}  c5 {[%clk 0:02:36]} 17. Kf1 {[%clk 0:02:22]}  Qd7 {[%clk 0:02:26]} 18. Kg2 {[%clk 0:02:22]}  Rad8 {[%clk 0:02:24]} 19. b3 {[%clk 0:02:16]}  Nd4 {[%clk 0:02:23]} 20. Qd1 {[%clk 0:02:16]}  Be6 {[%clk 0:02:20]} 21. Nh4 {[%clk 0:02:10]}  b5 {[%clk 0:02:15]} 22. f4 {[%clk 0:02:00]}  c4 {[%clk 0:02:09]} 23. f5 {[%clk 0:01:59]}  Bf7 {[%clk 0:02:06]} 24. Ng6+ {[%clk 0:01:56]}  Kg8 {[%clk 0:02:06]} 25. Nxf8 {[%clk 0:01:57]}  Rxf8 {[%clk 0:02:00]} 26. h6 {[%clk 0:01:57]}  g5 {[%clk 0:01:58]} 27. fxg6 {[%clk 0:01:57]}  Bxg6 {[%clk 0:01:58]} 28. bxc4 {[%clk 0:01:57]}  bxc4 {[%clk 0:01:57]} 29. Nxc4 {[%clk 0:01:57]}  Qc6 {[%clk 0:01:44]} 30. Rh4 {[%clk 0:01:42]}  Rfe8 {[%clk 0:01:33]} 31. Kh2 {[%clk 0:00:59]}  f5 {[%clk 0:01:30]} 32. Bg5 {[%clk 0:00:56]}  Rd7 {[%clk 0:01:12]} 33. c3 {[%clk 0:00:51]}  Nb5 {[%clk 0:01:06]} 34. a4 {[%clk 0:00:44]}  Nxc3 {[%clk 0:00:57]} 35. Qb3 {[%clk 0:00:44]}  fxe4 {[%clk 0:00:53]} 36. Qxc3 {[%clk 0:00:30]}  Rxd3 {[%clk 0:00:53]} 37. Qb4 {[%clk 0:00:27]}  Rd4 {[%clk 0:00:47]} 38. Rc1 {[%clk 0:00:24]}  Bf7 {[%clk 0:00:46]} 39. Rg4 {[%clk 0:00:16]}  Qe6 {[%clk 0:00:32]} 40. Kh3 {[%clk 0:00:04]}  Bh5 {[%clk 0:00:31]} 0-1


[Site "https://www.chess.com"]

[Event "Titled Tuesday Blitz June 20 Early 2023"]
[White "Pacan-Milej, Kosma"]
[Black "Dwilewicz, Katarzyna"]
[WhiteFideId "21800537"]
[BlackFideId "1148486"]
[WhiteElo "2302"]
[BlackElo "2098"]
[Result "1-0"]
[Round "2"]
[TimeControl "180+2"]
[Date "2023.06.20"]
[WhiteClock "0:00:06"]
[BlackClock "0:00:00"]
[Board "151"]

1. d4 {[%clk 0:03:00]}  d5 {[%clk 0:02:57]} 2. c4 {[%clk 0:03:01]}  dxc4 {[%clk 0:02:56]} 3. e3 {[%clk 0:03:01]}  Nf6 {[%clk 0:02:56]} 4. Bxc4 {[%clk 0:03:01]}  e6 {[%clk 0:02:56]} 5. Nf3 {[%clk 0:03:02]}  c5 {[%clk 0:02:56]} 6. O-O {[%clk 0:03:02]}  a6 {[%clk 0:02:57]} 7. b3 {[%clk 0:03:03]}  Nc6 {[%clk 0:02:56]} 8. Bb2 {[%clk 0:03:03]}  b5 {[%clk 0:02:54]} 9. Be2 {[%clk 0:03:03]}  Bb7 {[%clk 0:02:52]} 10. a4 {[%clk 0:03:03]}  b4 {[%clk 0:02:43]} 11. Nbd2 {[%clk 0:03:03]}  Be7 {[%clk 0:02:40]} 12. Nc4 {[%clk 0:03:02]}  O-O {[%clk 0:02:40]} 13. Nfe5 {[%clk 0:03:01]}  Nxe5 {[%clk 0:02:33]} 14. Nxe5 {[%clk 0:03:01]}  Nd5 {[%clk 0:02:23]} 15. Bf3 {[%clk 0:02:58]}  f6 {[%clk 0:02:20]} 16. Nc4 {[%clk 0:02:57]}  Rc8 {[%clk 0:02:10]} 17. e4 {[%clk 0:02:50]}  Nf4 {[%clk 0:01:47]} 18. g3 {[%clk 0:02:50]}  Nh3+ {[%clk 0:01:44]} 19. Kg2 {[%clk 0:02:49]}  Ng5 {[%clk 0:01:45]} 20. dxc5 {[%clk 0:02:32]}  Bxc5 {[%clk 0:01:40]} 21. h4 {[%clk 0:02:11]}  Nxf3 {[%clk 0:01:37]} 22. Qxf3 {[%clk 0:02:12]}  f5 {[%clk 0:01:33]} 23. Kh2 {[%clk 0:02:08]}  Bxe4 {[%clk 0:01:31]} 24. Qf4 {[%clk 0:02:06]}  Qc7 {[%clk 0:01:19]} 25. Be5 {[%clk 0:02:04]}  Qf7 {[%clk 0:01:16]} 26. Rad1 {[%clk 0:02:01]}  Rfd8 {[%clk 0:01:15]} 27. Qg5 {[%clk 0:01:58]}  Be7 {[%clk 0:01:10]} 28. Qf4 {[%clk 0:01:52]}  h6 {[%clk 0:01:09]} 29. Bd6 {[%clk 0:01:32]}  Bf6 {[%clk 0:00:55]} 30. Rd2 {[%clk 0:01:24]}  g5 {[%clk 0:00:54]} 31. Qe3 {[%clk 0:01:21]}  Kh7 {[%clk 0:00:43]} 32. Be5 {[%clk 0:01:08]}  gxh4 {[%clk 0:00:41]} 33. Bxf6 {[%clk 0:01:03]}  Qxf6 {[%clk 0:00:35]} 34. Nd6 {[%clk 0:00:59]}  hxg3+ {[%clk 0:00:15]} 35. fxg3 {[%clk 0:00:58]}  Rxd6 {[%clk 0:00:09]} 36. Rxd6 {[%clk 0:00:56]}  Rc2+ {[%clk 0:00:09]} 37. Rd2 {[%clk 0:00:47]}  Qb2 {[%clk 0:00:06]} 38. Rdf2 {[%clk 0:00:35]}  Rxf2+ {[%clk 0:00:04]} 39. Qxf2 {[%clk 0:00:31]}  Qxb3 {[%clk 0:00:04]} 40. g4 {[%clk 0:00:20]}  Qd3 {[%clk 0:00:04]} 41. gxf5 {[%clk 0:00:19]}  Qd6+ {[%clk 0:00:03]} 42. Kg1 {[%clk 0:00:16]}  exf5 {[%clk 0:00:03]} 43. Qa7+ {[%clk 0:00:14]}  Kg6 {[%clk 0:00:03]} 44. Qe3 {[%clk 0:00:12]}  Qf6 {[%clk 0:00:03]} 45. Kf2 {[%clk 0:00:09]}  Qh4+ {[%clk 0:00:03]} 46. Ke2 {[%clk 0:00:09]}  Qh5+ {[%clk 0:00:03]} 47. Kd2 {[%clk 0:00:09]}  Qh2+ {[%clk 0:00:03]} 48. Rf2 {[%clk 0:00:08]}  Qd6+ {[%clk 0:00:04]} 49. Ke1 {[%clk 0:00:07]}  Qd5 {[%clk 0:00:02]} 50. Rf1 {[%clk 0:00:07]}  Qc6 {[%clk 0:00:02]} 51. Rg1+ {[%clk 0:00:07]}  Kf7 {[%clk 0:00:02]} 52. Qb3+ {[%clk 0:00:07]}  Bd5 {[%clk 0:00:02]} 53. Qxb4 {[%clk 0:00:07]}  Qe6+ {[%clk 0:00:02]} 54. Kf2 {[%clk 0:00:07]}  Qe4 {[%clk 0:00:02]} 55. Qxe4 {[%clk 0:00:07]}  Bxe4 {[%clk 0:00:02]} 56. a5 {[%clk 0:00:07]}  Bd3 {[%clk 0:00:02]} 57. Rd1 {[%clk 0:00:07]}  Bb5 {[%clk 0:00:01]} 58. Rd6 {[%clk 0:00:07]}  h5 {[%clk 0:00:02]} 59. Kf3 {[%clk 0:00:07]}  Bc4 {[%clk 0:00:01]} 60. Kf4 {[%clk 0:00:07]}  Be6 {[%clk 0:00:02]} 61. Rxa6 {[%clk 0:00:07]}  h4 {[%clk 0:00:00]} 62. Rxe6 {[%clk 0:00:06]} 1-0


[Site "https://www.chess.com"]

[Event "Titled Tuesday Blitz June 20 Early 2023"]
[White "Florescu, Codrut-Constantin"]
[Black "arenal72"]
[WhiteFideId "1202200"]
[WhiteElo "2191"]
[BlackElo "2364"]
[Result "1-0"]
[Round "2"]
[TimeControl "180+2"]
[Date "2023.06.20"]
[WhiteClock "0:01:37"]
[BlackClock "0:00:14"]
[Board "152"]

1. e4 {[%clk 0:03:00]}  e6 {[%clk 0:02:58]} 2. d4 {[%clk 0:03:00]}  d5 {[%clk 0:02:58]} 3. Nc3 {[%clk 0:03:00]}  Nf6 {[%clk 0:02:57]} 4. Bg5 {[%clk 0:02:59]}  dxe4 {[%clk 0:02:57]} 5. Nxe4 {[%clk 0:02:59]}  Be7 {[%clk 0:02:58]} 6. Bxf6 {[%clk 0:02:59]}  gxf6 {[%clk 0:02:58]} 7. Nf3 {[%clk 0:02:58]}  f5 {[%clk 0:02:59]} 8. Nc3 {[%clk 0:02:58]}  a6 {[%clk 0:02:56]} 9. g3 {[%clk 0:02:52]}  b5 {[%clk 0:02:53]} 10. Bg2 {[%clk 0:02:52]}  Bb7 {[%clk 0:02:50]} 11. Nh4 {[%clk 0:02:49]}  Bxg2 {[%clk 0:02:48]} 12. Nxg2 {[%clk 0:02:50]}  c5 {[%clk 0:02:48]} 13. d5 {[%clk 0:02:39]}  b4 {[%clk 0:02:48]} 14. Na4 {[%clk 0:02:39]}  e5 {[%clk 0:02:29]} 15. Ne3 {[%clk 0:02:37]}  f4 {[%clk 0:02:22]} 16. Nc4 {[%clk 0:02:36]}  Nd7 {[%clk 0:02:19]} 17. Qf3 {[%clk 0:02:35]}  Bg5 {[%clk 0:02:15]} 18. O-O {[%clk 0:02:33]}  Qf6 {[%clk 0:02:05]} 19. Rae1 {[%clk 0:02:16]}  Kd8 {[%clk 0:01:21]} 20. d6 {[%clk 0:02:11]}  Rc8 {[%clk 0:01:17]} 21. Qb7 {[%clk 0:01:47]}  Rb8 {[%clk 0:00:44]} 22. Qc7+ {[%clk 0:01:44]}  Ke8 {[%clk 0:00:14]} 23. Nxe5 {[%clk 0:01:37]} 1-0


[Site "https://www.chess.com"]